bitfinex-derivatives/quotes_ETHF0:USTF0_20241007
["timestamp","ask_amount","ask_price","bid_price","bid_amount"]
[1728300680499,1.19846,2456.7,2456.4,0.4153]
[1728300680500,0.40717,2456.6,2456.5,0.40717]
[1728300680689,0.7913,2456.7,2456.4,0.4153]
[1728300680890,1.19846,2456.7,2456.6,0.40716]
[1728300681589,0.4062,2456.7,2456.6,0.40716]
[1728300681914,3.2078,2456.9,2456.8,0.40713]
[1728300682245,0.4235,2457.1,2457.0,0.4071]
[1728300682457,1.80932,2457.4,2457.1,0.40707]
[1728300682458,0.40705,2457.3,2457.1,0.40707]
[1728300682525,0.7917,2457.4,2456.8,8.43822]
[1728300682526,0.40707,2457.2,2456.8,8.43822]
[1728300682689,0.40707,2457.2,2457.1,0.40708]
[1728300682890,0.4071,2457.0,2456.9,0.40711]
[1728300683096,0.4071,2457.0,2456.8,4.01752]
[1728300683494,0.4071,2457.0,2456.8,3.6104]
[1728300683686,0.40714,2456.8,2456.7,0.40714]
[1728300683893,4.82773,2457.1,2456.7,0.40713]
[1728300683894,0.81992,2456.9,2456.7,0.40713]
[1728300684200,0.40713,2456.8,2456.7,0.40713]
[1728300684699,0.8149,2456.9,2456.7,0.40713]
[1728300684996,1.22203,2456.9,2456.7,0.40713]
[1728300686103,1.22203,2456.9,2456.3,1.43732]
[1728300686104,0.40715,2456.7,2456.6,0.40716]
[1728300686490,4.6249,2456.9,2456.3,0.412]
[1728300686794,0.4128,2456.9,2456.8,0.40713]
[1728300687201,0.4128,2456.9,2456.8,4.47753]
[1728300687394,0.4253,2457.2,2457.1,0.40708]
[1728300691110,0.3953,2457.6,2457.0,3.81]
[1728300691404,0.40696,2457.9,2457.8,0.40696]
[1728300691618,1.01734,2458.0,2457.4,7.0178]
[1728300691807,0.40699,2457.7,2457.5,0.424]
[1728300691995,4.2019,2457.9,2457.5,0.424]
[1728300692217,0.40698,2457.7,2457.6,0.40698]
[1728300694197,0.823,2457.8,2457.5,0.424]
[1728300694396,1.22997,2457.8,2457.5,0.424]
[1728300694599,1.22997,2457.8,2457.6,0.407]
[1728300694795,1.22997,2457.8,2457.5,0.424]
[1728300695197,1.22997,2457.8,2457.7,0.40698]
[1728300696309,0.40698,2457.7,2457.6,0.40699]
[1728300696697,0.823,2457.8,2457.6,0.40699]
[1728300696922,1.22998,2457.8,2457.6,0.407]
[1728300697207,1.22998,2457.8,2457.7,0.40698]
[1728300697791,0.823,2457.8,2457.5,0.424]
[1728300698001,0.40698,2457.7,2457.6,0.40699]
[1728300698208,1.22997,2457.8,2457.7,0.40698]
[1728300698520,1.22997,2457.8,2457.6,0.40699]
[1728300698819,0.40698,2457.7,2457.6,0.40699]
[1728300699900,0.823,2457.8,2457.7,0.40698]
[1728300699901,0.4007,2457.8,2457.7,0.40698]
[1728300700399,3.2078,2458.0,2457.5,4.64934]
[1728300700704,0.40695,2457.9,2457.8,0.40696]
[1728300700906,3.2078,2458.0,2457.9,0.40695]
[1728300700907,3.61474,2458.0,2457.9,0.40695]
[1728300703116,3.2078,2458.0,2457.6,1.0175]
[1728300703415,3.61475,2458.0,2457.9,0.40695]
[1728300703806,3.2078,2458.0,2457.6,1.0175]
[1728300704217,3.61474,2458.0,2457.9,0.40695]
[1728300706707,0.40695,2457.9,2457.8,0.40695]
[1728300707211,3.61473,2458.0,2457.9,0.40695]
[1728300712022,3.61473,2458.0,2457.7,1.01746]
[1728300712023,3.2078,2458.0,2457.5,4.63443]
[1728300712319,0.40697,2457.8,2457.7,0.40697]
[1728300712663,0.40701,2457.6,2457.5,0.40701]
[1728300713058,0.81329,2457.7,2457.6,0.407]
[1728300713064,0.40698,2457.8,2457.7,0.40697]
[1728300713620,0.40696,2457.9,2457.8,0.40696]
[1728300713828,4.63144,2458.0,2457.5,1.44124]
[1728300714025,0.40698,2457.8,2457.7,0.40697]
[1728300715617,0.40697,2457.9,2457.8,0.40696]
[1728300716014,0.40697,2457.9,2457.7,0.40697]
[1728300716015,0.40698,2457.8,2457.7,0.40697]
[1728300716812,0.40696,2457.9,2457.8,0.40695]
[1728300717129,3.2078,2458.0,2457.9,0.40695]
[1728300717326,3.61473,2458.0,2457.9,0.40695]
[1728300717523,3.2078,2458.0,2457.9,0.40695]
[1728300717820,3.61473,2458.0,2457.9,0.40695]
[1728300720716,3.2078,2458.0,2457.5,3.6315]
[1728300720921,3.2078,2458.0,2457.6,0.40698]
[1728300720922,0.40699,2457.7,2457.6,0.40698]
[1728300723621,0.40699,2457.7,2457.6,4.47578]
[1728300723923,0.40695,2457.9,2457.8,0.40695]
[1728300724126,3.2078,2458.0,2457.8,1.76]
[1728300724321,3.2078,2458.0,2457.9,0.40695]
[1728300724529,3.2078,2458.0,2457.9,0.81495]
[1728300724734,0.391,2458.2,2457.9,5.27875]
[1728300724924,0.79791,2458.2,2458.1,0.40692]
[1728300725124,0.391,2458.2,2458.1,0.40692]
[1728300725964,0.40688,2458.4,2458.3,0.40686]
[1728300726138,0.40688,2458.4,2458.3,2.16686]
[1728300726525,0.40688,2458.4,2458.3,0.40686]
[1728300726929,0.40688,2458.4,2458.3,0.79776]
[1728300727140,0.40688,2458.4,2458.3,0.3909]
[1728300727426,0.40688,2458.4,2458.0,3.81]
[1728300727631,0.40692,2458.1,2458.0,0.3909]
[1728300728055,0.82542,2458.1,2458.0,0.79783]
[1728300728653,0.4069,2458.2,2458.1,0.4069]
[1728300729556,1.18921137,2458.4,2458.2,0.40688]
[1728300729736,0.391,2458.5,2458.3,3.81]
[1728300729931,0.391,2458.5,2458.4,0.79937]
[1728300729932,0.79787,2458.5,2458.4,0.79937]
[1728300730150,0.79785,2458.5,2458.4,0.79937]
[1728300732630,0.40684,2458.6,2458.4,0.3925]
[1728300732829,0.4103,2458.8,2458.5,3.81]
[1728300733033,0.81711,2458.8,2458.7,4.21682]
[1728300733439,0.4103,2458.8,2458.7,4.21682]
[1728300733632,1.2044392,2459.0,2458.9,0.40677]
[1728300733837,0.40678,2459.0,2458.9,0.40677]
[1728300734435,0.40678,2458.9,2458.8,0.387]
[1728300734834,0.40678,2458.9,2458.8,0.7938]
[1728300735250,1.8145792,2459.1,2458.6,3.81]
[1728300735437,0.40683,2458.6,2458.5,0.79385]
[1728300736467,1.22602,2458.7,2458.6,0.40683]
[1728300736477,1.22602,2458.7,2458.5,0.79384]
[1728300736478,0.40683,2458.6,2458.5,0.79384]
[1728300736640,0.8192,2458.7,2458.5,0.79384]
[1728300736641,1.22603,2458.7,2458.6,0.40683]
[1728300738235,3.2078,2459.1,2458.5,4.197]
[1728300738446,1.01686,2459.2,2458.9,0.40678]
[1728300738641,1.01686,2459.2,2459.1,0.40673]
[1728300738642,0.40675,2459.2,2459.1,0.40673]
[1728300739795,0.40675,2459.1,2459.0,4.61125]
[1728300742638,0.40675,2459.1,2459.0,4.2045]
[1728300742995,4.0664,2459.1,2458.6,4.21683]
[1728300743180,0.40682,2458.7,2458.6,4.21683]
[1728300748244,0.7901,2459.5,2458.8,1.01698]
[1728300748439,1.19678,2459.5,2459.4,3.81]
[1728300748847,3.9979,2459.5,2459.1,4.2148]
[1728300749153,0.40675,2459.1,2459.0,0.40676]
[1728300749500,0.40675,2459.1,2458.8,8.0]
[1728300749501,0.40677,2459.0,2458.8,8.4048]
[1728300749656,0.40677,2459.0,2458.9,0.40678]
[1728300749657,0.7901,2459.0,2458.9,0.40678]
[1728300750049,1.19687,2459.0,2458.9,0.40678]
[1728300750649,1.19687,2459.0,2458.9,4.21678]
[1728300753244,0.402,2459.0,2458.9,8.28318]
[1728300753444,1.01679,2459.4,2458.9,8.28318]
[1728300753445,0.3953,2459.3,2458.9,8.28318]
[1728300753645,0.802,2459.3,2459.1,3.81]
[1728300753876,0.802,2459.3,2459.2,0.40673]
[1728300754154,0.4067,2459.3,2459.2,0.79743]
[1728300754352,0.802,2459.3,2459.2,0.79743]
[1728300754857,0.4067,2459.3,2459.2,0.79743]
[1728300756268,0.3953,2459.5,2459.2,0.79743]
[1728300756497,0.4075,2459.6,2459.5,0.40668]
[1728300756658,0.81417,2459.6,2459.5,0.40668]
[1728300756955,0.4075,2459.6,2459.4,3.81]
[1728300757166,0.4075,2459.6,2459.2,0.79742]
[1728300757167,0.40672,2459.3,2459.2,0.79742]
[1728300757546,0.40672,2459.3,2459.2,4.86382]
[1728300758557,0.40672,2459.3,2459.2,0.3907]
[1728300758757,0.40677,2459.0,2458.9,3.61457]
[1728300759055,0.40678,2458.9,2458.8,4.62958]
[1728300759655,0.82417,2459.0,2458.9,0.40678]
[1728300760111,0.4176,2459.2,2458.9,4.0664]
[1728300760258,0.40675,2459.1,2459.0,4.21675]
[1728300760449,0.4176,2459.2,2458.8,4.2228]
[1728300760651,0.40678,2459.0,2458.9,0.40677]
[1728300761155,1.43444,2459.2,2458.8,4.2228]
[1728300761350,0.40678,2458.9,2458.8,4.62958]
[1728300763457,0.4176,2459.2,2458.7,3.81]
[1728300763655,0.80282,2458.8,2458.7,0.40681]
[1728300764159,1.19332,2458.8,2458.7,0.40681]
[1728300764960,0.40683,2458.7,2458.6,0.40682]
[1728300766168,1.19332,2458.8,2458.6,0.40683]
[1728300766464,1.19332,2458.8,2458.5,4.2318]
[1728300766465,0.40683,2458.6,2458.5,0.82865]
[1728300767165,0.40683,2458.6,2458.5,4.63865]
[1728300769783,0.40683,2458.6,2458.5,4.2318]
[1728300770261,0.40683,2458.6,2458.5,0.4218]
[1728300771272,0.40683,2458.6,2458.5,0.82865]
[1728300772058,0.40692,2458.2,2458.1,0.40691]
[1728300772258,2.03426,2458.5,2458.2,0.40689]
[1728300772259,0.4069,2458.3,2458.2,0.40689]
[1728300773270,0.4069,2458.2,2458.1,0.4201]
[1728300773764,0.4069,2458.2,2458.1,0.82702]
[1728300774067,0.4069,2458.2,2458.1,0.4201]
[1728300775256,0.40695,2457.9,2457.8,4.21696]
[1728300775464,0.40695,2457.9,2457.8,0.79696]
[1728300782169,0.3926,2458.0,2457.9,0.40695]
[1728300782384,0.40691,2458.2,2458.1,0.40691]
[1728300782385,0.40692,2458.2,2458.1,0.40691]
[1728300782574,0.40692,2458.2,2458.1,4.21691]
[1728300783469,0.40692,2458.2,2458.1,3.81]
[1728300783670,0.40692,2458.2,2458.1,4.21692]
[1728300783872,0.40692,2458.2,2458.1,3.81]
[1728300785065,0.40692,2458.2,2458.1,4.21692]
[1728300785680,0.40692,2458.2,2458.1,3.81]
[1728300785905,0.40692,2458.2,2458.1,4.21692]
[1728300786677,0.40692,2458.2,2458.1,3.81]
[1728300787485,0.40693,2458.0,2457.9,0.81894]
[1728300787982,0.40693,2458.0,2457.9,4.88774]
[1728300790190,0.40693,2458.1,2458.0,0.40692]
[1728300790394,0.79839,2458.3,2458.2,0.4069]
[1728300792793,0.82087,2458.4,2458.3,0.40688]
[1728300793297,0.82087,2458.4,2458.3,2.16688]
[1728300793888,0.82087,2458.4,2458.2,0.81509]
[1728300794104,0.40688,2458.3,2458.2,0.81509]
[1728300794313,0.40696,2457.8,2457.7,0.095]
[1728300794594,0.40698,2457.7,2457.6,0.4036]
[1728300794793,0.81448,2457.7,2457.6,0.4036]
[1728300794993,1.20988,2457.7,2457.6,0.4036]
[1728300795600,5.27868,2457.7,2457.6,0.4036]
[1728300795801,0.40702,2457.5,2457.4,0.40702]
[1728300795998,0.40702,2457.5,2457.4,0.81062]
[1728300796947,3.81,2457.6,2456.9,0.095]
[1728300797103,3.2078,2457.5,2457.1,0.4149]
[1728300797289,0.40704,2457.4,2457.2,0.40705]
[1728300797790,3.2078,2457.5,2457.3,0.40705]
[1728300797993,0.8029,2457.7,2457.4,3.81]
[1728300798195,0.8029,2457.7,2457.6,0.407]
[1728300798388,0.8029,2457.7,2457.5,0.4149]
[1728300798588,1.20989,2457.7,2457.6,0.407]
[1728300798989,1.20989,2457.7,2457.5,0.4149]
[1728300799414,0.407,2457.6,2457.5,0.4149]
[1728300799545,0.407,2457.6,2457.5,0.82191]
[1728300800800,0.407,2457.6,2457.5,0.4149]
[1728300800998,0.407,2457.6,2457.5,0.82191]
[1728300803596,0.40704,2457.4,2457.3,0.40704]
[1728300803896,1.01751,2457.6,2457.2,0.40706]
[1728300803897,0.40706,2457.3,2457.2,0.40706]
[1728300806403,0.40703,2457.5,2457.4,0.40703]
[1728300806591,0.40701,2457.5,2457.4,0.40703]
[1728300806793,0.40701,2457.5,2457.4,0.40702]
[1728300806794,0.40703,2457.5,2457.4,0.40702]
[1728300807697,1.82038,2457.7,2457.1,0.4224]
[1728300807894,0.40702,2457.5,2457.4,0.40701]
[1728300809300,0.40704,2457.4,2457.3,0.40703]
[1728300809809,1.01753,2457.6,2457.2,3.81]
[1728300810005,1.01753,2457.6,2457.4,0.40702]
[1728300810006,0.40703,2457.5,2457.4,0.40702]
[1728300816179,1.82037,2457.7,2457.3,3.81]
[1728300816324,0.40702,2457.6,2457.5,0.407]
[1728300817109,0.4075,2457.7,2457.6,0.407]
[1728300817508,0.4075,2457.7,2457.6,0.8317]
[1728300818409,0.40697,2457.8,2457.7,0.40696]
[1728300818844,4.42057,2457.9,2457.8,0.40696]
[1728300819310,4.42057,2457.9,2457.6,0.83168]
[1728300819311,0.40698,2457.7,2457.6,0.83168]
[1728300821909,4.0136,2457.9,2457.6,0.4247]
[1728300822117,4.42056,2457.9,2457.8,0.40696]
[1728300824318,0.40698,2457.8,2457.7,0.40697]
[1728300826319,1.21276,2457.9,2457.6,0.4247]
[1728300826520,1.21276,2457.9,2457.8,0.40696]
[1728300827113,0.8058,2457.9,2457.8,4.21696]
[1728300827421,1.21275,2457.9,2457.8,4.21696]
[1728300827714,0.8058,2457.9,2457.8,4.21696]
[1728300827920,1.21275,2457.9,2457.8,4.21696]
[1728300828122,0.8058,2457.9,2457.8,4.21696]
[1728300828317,1.21275,2457.9,2457.8,4.21696]
[1728300834416,1.21275,2457.9,2457.8,2.16696]
[1728300837016,1.21275,2457.9,2457.8,1.76]
[1728300837222,1.21275,2457.9,2457.8,2.16696]
[1728300837419,1.63645,2457.9,2457.8,2.16696]
[1728300837924,1.63645,2457.9,2457.7,2.16697]
[1728300837925,1.2295,2457.9,2457.7,2.16697]
[1728300838229,0.40696,2457.8,2457.7,2.16697]
[1728300838742,2.24688,2457.9,2457.8,0.40696]
[1728300838743,2.43603617,2457.9,2457.8,0.40696]
[1728300839000,1.21276,2457.9,2457.8,2.16696]
[1728300840236,1.21276,2457.9,2457.8,1.76]
[1728300840568,0.40696,2457.8,2457.7,2.16697]
[1728300840731,0.83006,2457.8,2457.7,2.16697]
[1728300840926,1.21276,2457.9,2457.7,1.76]
[1728300840927,0.8058,2457.9,2457.7,1.76]
[1728300841184,1.21276,2457.9,2457.8,0.40696]
[1728300842015,1.21276,2457.9,2457.8,2.16696]
[1728300846823,1.21276,2457.9,2457.8,0.40696]
[1728300849823,0.79979781,2458.2,2458.0,0.40693]
[1728300850030,0.79979781,2458.2,2458.1,2.16692]
[1728300850329,0.4069,2458.2,2458.1,2.16692]
[1728300852331,4.4404,2458.3,2458.2,0.4069]
[1728300852523,5.23995885,2458.3,2458.2,0.4069]
[1728300854033,0.40693,2458.1,2457.9,0.4204]
[1728300854234,0.82523,2458.0,2457.9,0.82734]
[1728300857560,0.82523,2458.0,2457.9,2.58734]
[1728300857564,0.82523,2458.0,2457.7,1.01742]
[1728300857565,0.4183,2458.0,2457.8,0.40696]
[1728300857840,1.23825,2457.9,2457.8,0.40696]
[1728300858025,1.23825,2457.9,2457.7,0.40697]
[1728300858026,0.40696,2457.8,2457.7,0.40697]
[1728300858227,1.4244,2457.8,2457.7,0.40696]
[1728300858427,0.40698,2457.8,2457.7,0.40696]
[1728300860032,0.40698,2457.8,2457.6,2.1794]
[1728300860236,0.82728,2457.7,2457.6,2.58638]
[1728300860827,0.407,2457.6,2457.5,3.2078]
[1728300861034,0.8313,2457.9,2457.5,6.38664]
[1728300861330,2.0383271,2457.9,2457.8,1.76]
[1728300861533,2.0383271,2457.9,2457.6,2.16698]
[1728300861534,0.407,2457.7,2457.6,2.16698]
[1728300861733,0.407,2457.7,2457.6,1.76]
[1728300861934,0.407,2457.6,2457.5,3.2078]
[1728300862135,0.407,2457.6,2457.4,0.40702]
[1728300862136,0.40702,2457.5,2457.4,0.40702]
[1728300862441,1.23262,2457.5,2457.4,0.40702]
[1728300865744,1.23262,2457.5,2457.4,2.16702]
[1728300868063,0.40705,2457.4,2457.3,2.16703]
[1728300868069,0.81075,2457.4,2457.3,2.16703]
[1728300868539,3.6115,2457.4,2456.8,1.82243]
[1728300868746,0.40708,2457.2,2457.1,0.40706]
[1728300868941,0.40708,2457.1,2457.0,2.1512]
[1728300869252,1.40645,2457.1,2456.7,1.76]
[1728300869553,0.7875,2457.0,2456.9,0.40711]
[1728300869947,0.7875,2457.0,2456.9,0.81091]
[1728300870143,1.1946,2457.0,2456.9,0.81091]
[1728300870860,1.1946,2457.0,2456.9,0.4038]
[1728300871142,0.40711,2456.9,2456.8,0.40711]
[1728300871534,0.40716,2456.6,2456.5,3.61497]
[1728300871747,0.40716,2456.6,2456.5,0.40717]
[1728300872044,0.79915,2456.7,2456.6,0.40716]
[1728300872249,0.40718,2456.6,2456.5,0.40717]
[1728300872448,0.40718,2456.5,2456.4,2.57099]
[1728300872641,0.79008,2456.5,2456.4,2.57099]
[1728300873141,0.79008,2456.5,2456.4,2.1638]
[1728300873337,0.79008,2456.5,2456.4,2.571]
[1728300874553,0.79008,2456.5,2456.4,0.811]
[1728300879155,2.55008,2456.5,2456.4,0.4038]
[1728300880148,2.1429,2456.5,2456.3,0.40721]
[1728300880348,2.1429,2456.5,2456.0,0.40726]
[1728300880349,0.40725,2456.1,2456.0,0.40726]
[1728300880608,0.40725,2456.1,2456.0,0.80346]
[1728300880745,2.1562,2456.2,2456.0,0.3962]
[1728300880951,1.76,2456.4,2456.3,0.4072]
[1728300881147,0.79009,2456.5,2456.4,0.4072]
[1728300881746,3.61494,2456.8,2456.7,0.40715]
[1728300881988,3.6133,2456.8,2456.7,0.40715]
[1728300882355,3.6133,2456.8,2456.7,0.82535]
[1728300883454,4.02043,2456.8,2456.7,0.82535]
[1728300883845,0.4055,2456.8,2456.7,0.82535]
[1728300884459,0.81263,2456.8,2456.7,0.82535]
[1728300885154,0.81263,2456.8,2456.7,0.4182]
[1728300886076,0.81263,2456.8,2456.7,0.82535]
[1728300891765,0.4055,2456.8,2456.7,0.82535]
[1728300892359,0.40712,2456.9,2456.8,0.40713]
[1728300892558,0.40711,2457.0,2456.9,0.4071]
[1728300896569,1.01764,2457.3,2456.8,1.43681]
[1728300896768,0.40707,2457.3,2457.2,0.40705]
[1728300898456,0.8339,2457.6,2457.0,1.41545]
[1728300898661,0.40704,2457.5,2457.4,0.40702]
[1728300898864,0.40705,2457.4,2457.3,0.40703]
[1728300899459,1.8514,2457.6,2457.1,1.01769]
[1728300899661,0.40702,2457.5,2457.4,0.40702]
[1728300900886,1.2409,2457.6,2457.5,0.40701]
[1728300901176,0.40701,2457.6,2457.5,0.40701]
[1728300903430,0.40704,2457.4,2457.3,0.40703]
[1728300904071,0.40703,2457.5,2457.4,0.40702]
[1728300908075,0.407,2457.6,2457.5,0.40701]
[1728300908667,2.167,2457.6,2457.5,0.40701]
[1728300912371,1.20179,2457.7,2457.6,0.407]
[1728300912777,0.7948,2457.7,2457.6,0.407]
[1728300913246,0.40696,2457.9,2457.6,2.167]
[1728300913607,0.40696,2457.9,2457.8,0.40696]
[1728300913788,0.8253,2458.0,2457.6,2.5688]
[1728300913981,1.23225,2458.0,2457.9,0.40695]
[1728300915992,0.8253,2458.0,2457.9,2.16695]
[1728300916279,1.23223,2458.0,2457.9,2.16695]
[1728300916696,4.10841153,2458.6,2457.9,2.16695]
[1728300916697,0.095,2458.6,2457.9,11.8288]
[1728300917079,22.2,2459.4,2458.8,0.4068]
[1728300917080,0.4819,2458.9,2458.8,0.4068]
[1728300917262,0.3869,2458.9,2458.8,2.1668]
[1728300917434,1.76,2459.6,2459.3,0.40671]
[1728300917435,3.2078,2459.6,2459.3,0.40671]
[1728300917582,0.40671,2459.4,2459.2,0.40673]
[1728300917780,2.77681,2459.3,2458.8,0.095]
[1728300917969,1.76,2459.1,2458.7,0.4231]
[1728300918169,4.22461,2459.3,2458.7,0.4231]
[1728300918170,0.4093,2459.2,2458.7,0.4231]
[1728300918372,0.40676,2459.1,2458.9,0.40678]
[1728300918982,0.40676,2459.1,2459.0,0.40677]
[1728300919282,0.40676,2459.1,2458.9,0.40677]
[1728300919482,0.40676,2459.1,2458.7,0.4231]
[1728300919483,0.4093,2459.2,2458.7,0.4231]
[1728300919702,0.40676,2459.1,2458.7,0.4231]
[1728300919886,0.41,2459.1,2458.7,0.4231]
[1728300920075,0.81676,2459.1,2458.9,0.40677]
[1728300920274,0.81676,2459.1,2459.0,0.40677]
[1728300920275,0.41,2459.1,2459.0,0.40677]
[1728300920473,0.41,2459.1,2458.7,0.4231]
[1728300920675,0.81676,2459.1,2458.9,0.40677]
[1728300921382,0.81676,2459.1,2459.0,0.40677]
[1728300921383,0.41,2459.1,2459.0,0.40677]
[1728300921979,0.81675,2459.1,2459.0,0.40677]
[1728300922482,0.81675,2459.1,2458.7,0.4231]
[1728300922483,0.41,2459.1,2458.7,0.4231]
[1728300922669,0.81675,2459.1,2458.9,0.40677]
[1728300924081,0.40677,2459.0,2458.9,0.40677]
[1728300924278,0.81676,2459.1,2458.9,0.40677]
[1728300925187,0.41,2459.1,2459.0,0.40677]
[1728300926358,0.4093,2459.2,2459.1,0.40675]
[1728300929888,0.4093,2459.2,2458.9,1.01696]
[1728300929889,0.4064,2459.4,2459.3,0.40672]
[1728300930087,0.3869,2459.5,2459.4,0.4067]
[1728300930501,0.8124,2459.9,2459.8,0.40663]
[1728300930887,5.28462,2459.9,2459.8,0.40663]
[1728300931091,5.28462,2459.9,2459.6,0.3838]
[1728300931092,5.28463,2459.9,2459.7,0.40664]
[1728300931298,5.28463,2459.9,2459.6,0.79046]
[1728300931299,0.8124,2459.9,2459.6,0.79046]
[1728300931503,0.40665,2459.7,2459.6,0.79046]
[1728300931693,0.388,2459.8,2459.6,0.3838]
[1728300931992,0.388,2459.8,2459.6,0.79045]
[1728300931993,0.79464,2459.8,2459.6,0.79045]
[1728300932193,0.40665,2459.7,2459.6,0.79045]
[1728300932396,0.79464,2459.8,2459.6,0.79045]
[1728300932707,0.79465,2459.8,2459.6,0.79045]
[1728300933492,0.40665,2459.7,2459.6,0.79045]
[1728300934394,5.08223,2459.7,2459.2,3.2078]
[1728300934602,0.40671,2459.4,2459.3,0.40671]
[1728300935603,0.40672,2459.3,2459.2,0.81742]
[1728300936005,1.42453,2459.5,2459.2,0.4107]
[1728300936210,0.40671,2459.4,2459.3,0.4067]
[1728300936919,0.40672,2459.3,2459.2,0.81742]
[1728300937132,0.80752,2459.3,2459.2,0.81743]
[1728300938113,4.87392,2459.3,2458.8,4.22478]
[1728300938412,4.87392,2459.3,2459.0,0.40676]
[1728300938413,0.40676,2459.1,2459.0,0.40676]
[1728300938914,0.40674,2459.2,2459.1,0.40674]
[1728300939210,0.40676,2459.1,2459.0,0.40676]
[1728300939413,4.62542,2459.3,2458.9,0.4205]
[1728300939893,0.40674,2459.2,2459.1,0.40674]
[1728300940604,0.40676,2459.1,2459.0,0.40675]
[1728300941405,0.40675,2459.2,2459.1,0.40674]
[1728300942409,0.4008,2459.3,2458.9,1.43746]
[1728300942613,0.4008,2459.3,2459.2,0.40673]
[1728300944411,1.42453,2459.5,2459.4,0.4067]
[1728300944412,0.4067,2459.5,2459.4,0.4067]
[1728300944619,0.3896,2459.6,2459.5,0.40668]
[1728300944819,0.79627,2459.6,2459.5,0.40668]
[1728300946212,0.3896,2459.6,2459.5,0.40668]
[1728300946433,0.79627,2459.6,2459.5,0.40668]
[1728300946720,0.4067,2459.5,2459.4,0.40669]
[1728300947220,0.79627,2459.6,2459.3,0.3853]
[1728300947422,0.3896,2459.6,2459.3,0.3853]
[1728300947717,0.79628,2459.6,2459.5,0.40668]
[1728300948715,0.79628,2459.6,2459.3,0.3853]
[1728300948918,0.4067,2459.5,2459.4,0.40669]
[1728300952921,0.3896,2459.6,2459.3,4.1953]
[1728300953111,0.79627,2459.6,2459.5,0.40668]
[1728300960116,0.3896,2459.6,2459.5,0.40668]
[1728300960317,0.79627,2459.6,2459.5,0.40668]
[1728300961218,0.40665,2459.7,2459.6,0.40667]
[1728300961710,0.40668,2459.5,2459.4,0.40669]
[1728300961919,0.40672,2459.4,2459.3,0.40671]
[1728300962524,1.01672,2459.5,2459.1,3.2078]
[1728300962719,0.40673,2459.2,2459.1,3.2078]
[1728300963443,0.80383,2459.3,2459.1,3.2078]
[1728300963450,0.80383,2459.3,2459.2,2.16673]
[1728300963451,0.3971,2459.3,2459.2,2.16673]
[1728300963456,0.4067,2459.4,2459.3,0.40672]
[1728300963569,0.4067,2459.4,2459.3,2.16672]
[1728300964833,0.40672,2459.3,2459.2,1.76]
[1728300965021,0.81062,2459.3,2459.2,2.16673]
[1728300965218,0.40673,2459.2,2459.1,3.61454]
[1728300965826,0.81062,2459.3,2459.2,0.40673]
[1728300966022,0.81062,2459.3,2459.2,2.16673]
[1728300966630,1.20549017,2459.5,2459.4,0.4067]
[1728300966825,1.20549017,2459.5,2459.4,2.1667]
[1728300966826,0.40669,2459.5,2459.4,2.1667]
[1728300967228,0.40668,2459.6,2459.5,0.40667]
[1728300968428,0.40668,2459.6,2459.4,2.77676]
[1728300968429,0.80256,2459.7,2459.6,0.40667]
[1728300968632,0.80256,2459.7,2459.6,2.16667]
[1728300973735,0.80256,2459.7,2459.6,1.76]
[1728300974338,0.80256,2459.7,2459.6,2.16667]
[1728300975144,1.19446,2459.7,2459.6,2.16667]
[1728300975835,0.3959,2459.7,2459.1,1.76]
[1728300976038,0.80256,2459.7,2459.5,1.76]
[1728300976237,0.80256,2459.7,2459.6,0.82257]
[1728300976719,0.80256,2459.7,2459.6,0.4159]
[1728300976726,0.80256,2459.7,2459.6,0.82257]
[1728300977211,0.80256,2459.7,2459.6,0.4159]
[1728300977528,0.80256,2459.7,2459.6,0.82257]
[1728300978040,0.80256,2459.7,2459.6,0.4159]
[1728300978334,0.4067,2459.5,2459.4,2.16668]
[1728300986040,0.40668,2459.6,2459.5,0.40667]
[1728300988833,0.40668,2459.5,2459.4,2.16669]
[1728300989739,1.19514736,2459.7,2459.6,0.40667]
[1728300989740,0.79924736,2459.7,2459.6,0.40667]
[1728300989934,3.61443,2459.9,2459.5,3.58659]
[1728300990169,3.61443,2459.9,2459.8,2.16663]
[1728300990490,4.41406229,2459.9,2459.8,2.16663]
[1728300991140,0.2,2460.0,2459.9,0.40662]
[1728300991342,0.2,2460.0,2459.9,9.44002]
[1728300991642,0.402,2460.5,2459.9,15.0334]
[1728300991643,0.79926414,2460.5,2459.9,15.0334]
[1728300991857,0.40652,2460.5,2460.4,2.16653]
[1728300992046,1.39983,2460.7,2460.4,1.76]
[1728300992250,0.40651,2460.6,2460.5,0.4065]
[1728300992451,0.40651,2460.6,2460.5,0.3965]
[1728300992839,0.40655,2460.3,2460.2,5.37436]
[1728300993039,0.40655,2460.3,2460.2,4.9678]
[1728300993244,0.40657,2460.2,2460.1,0.3965]
[1728300993955,0.40657,2460.2,2460.1,0.80308]
[1728300994242,0.40657,2460.2,2460.1,0.3965]
[1728300997140,0.4066,2460.0,2459.9,3.2078]
[1728300997283,0.4066,2460.0,2459.9,3.6237]
[1728300999377,0.4066,2460.0,2459.9,4.03032]
[1728300999546,0.4066,2460.0,2459.9,3.6237]
[1728300999753,0.4066,2460.0,2459.9,0.4159]
[1728301000248,0.40665,2459.7,2459.6,3.81]